Cogmind - Beta 16 @@@ ROGUE MODE // 2026.01.14 @ 02:33:12 // AFD2019/Pay2Buy Player: AngelSpirit Result: Self-destructed Performance ------------- Evolutions (2) 1000 Regions Visited (3) 600 Robots Destroyed (52) 260 Value Destroyed (1508) 1508 Prototype IDs (12) 240 Alien Tech Used (0) 0 Bonus (0) 0 TOTAL SCORE: 3608 Bonus ------- None Cogmind --------- Core Integrity 418/550 Matter 300/300 Energy 265/265 System Corruption 1% Temperature Cool (0) Movement Core (300) Ox5 Location -8/Materials Parts ------- > --- POWER (1) -------- Improved Ion Engine > --- PROPULSION (2) --- Armored Huge Wheel > --- UTILITY (5) ------ Cooling System Weapon Cycler Hardened Medium Armor Plating > --- WEAPON (3) ------- (None) > --- INVENTORY (10) --- Armored Wheel Peak State ------------ > --- POWER ------------ Improved Ion Engine > --- PROPULSION ------- Armored Huge Wheel > --- UTILITY ---------- Cooling System Weapon Cycler Hardened Medium Armor Plating > --- WEAPON ----------- Battle Cannon Flamer Flamer > --- INVENTORY -------- Armored Wheel [Rating: 25] Favorites ----------- Power Improved Ion Engine Engine Improved Ion Engine Propulsion Wheel Wheel Wheel Utility Medium Armor Plating Device Hardlight Generator Protection Medium Armor Plating Weapon Flamer Energy Gun Subdweller Laser Energy Cannon Subdweller Beam Cannon Ballistic Cannon Battle Cannon Special Weapon Flamer Build | -11 -10 -10 -8 ------- Run | Yrd Mat Sub Mat Slots Evolved 4 | . . . 4 Power . | . . . . Propulsion . | . . . . Utility 3 | . . . 3 Weapon 1 | . . . 1 Parts Attached 9 | . . 5 4 Power . | . . . . Engine . | . . . . Core . | . . . . Reactor . | . . . . Propulsion . | . . . . Treads . | . . . . Leg . | . . . . Wheel . | . . . . Hover . | . . . . Flight . | . . . . Utility 2 | . . 2 . Device 2 | . . 2 . Storage . | . . . . Processor . | . . . . Hackware . | . . . . Protection . | . . . . Artifact . | . . . . Weapon 7 | . . 3 4 Energy Gun 1 | . . . 1 Energy Cannon 1 | . . 1 . Ballistic Gun . | . . . . Ballistic Cannon 3 | . . 2 1 Launcher . | . . . . Special Weapon 2 | . . . 2 Impact Weapon . | . . . . Slashing Weapon . | . . . . Piercing Weapon . | . . . . Special Melee Weapon . | . . . . Unidentified Prototypes . | . . . . Parts Lost 12 | . 2 2 8 Power 1 | . . . 1 Propulsion 2 | . . 1 1 Utility 3 | . . 1 2 Weapon 6 | . 2 . 4 Highest Loss Streak 3 | . 1 1 3 To Critical Strikes . | . . . . Average Backups 2 | . . 4 1 Power . | . . . . Propulsion . | . . . . Utility . | . . 1 . Weapon 2 | . . 3 1 Tool/Special . | . . . . Unused Backups . | . . . . Power . | . . . . Propulsion . | . . . . Utility . | . . . . Weapon . | . . . . Tool/Special . | . . . . Average Slot Usage (%) 90 | . 99 92 74 Engine 12 | . 14 14 8 Wheel 25 | . 28 27 16 Device 14 | . 14 14 16 Protection 9 | . 14 7 6 Energy Gun 1 | . . . 6 Energy Cannon 6 | . . 11 6 Ballistic Cannon 9 | . . 14 8 Special Weapon 10 | . 27 1 5 Peak Build Rating 25 | 12 12 15 25 Average Rating 13 | 12 11 13 18 On Entrance 9 | . 12 12 15 Avg Prop Armor Cover (%) . | . . . . Naked Turns . | . . . . Heaviest Build 36 | 20 20 30 36 Greatest Support 28 | 20 20 22 28 Greatest Overweight (x) 2 | . . 1 2 Average Overweight (x) . | . . . . Largest Inventory Capacity 10 | 10 10 10 10 Average Capacity 10 | 10 10 10 10 Most Carried 6 | . 1 6 5 Average Carried 3 | . . 4 2 Final Capacity 10 | 10 10 10 10 Final Carried 6 | . 1 6 1 Class Distribution -------------------- 84% | Mutant 15% | Tank Dominant Class ---------------- Mutant | -10/Materials Mutant | -10/Subcaves Tank | -8/Materials Resources | -11 -10 -10 -8 ----------- Run | Yrd Mat Sub Mat Matter Collected 902 | . 182 498 222 Remotely . | . . . . Salvage Created 1341 | . 167 664 510 Parts . | . . . . Haulers Intercepted 1 | . 1 . . Recyclers Shooed . | . . . . Parts Field Recycled . | . . . . Retrieved Matter . | . . . . Parts Self-Destructed . | . . . . Prevented . | . . . . Parts Restored . | . . . . Kills | -11 -10 -10 -8 ------- Run | Yrd Mat Sub Mat Combat Hostiles Destroyed 44 | . 10 19 15 Guns 3 | . . . 3 Cannons 38 | . 9 19 10 Classes Destroyed 11 | . 4 3 4 Worker 1 | . . . 1 Hauler 1 | . 1 . . Operator 1 | . . . 1 Turret 2 | . . 2 . Watcher 3 | . 2 . 1 Swarmer 16 | . 8 4 4 Grunt 8 | . 2 . 6 Duelist 2 | . . . 2 Sentry 3 | . . . 3 Cobbler 1 | . . 1 . Subdweller 15 | . . 15 . Best Kill Streak 6 | . 3 4 6 Combat Bots Only 4 | . 3 4 4 Max Kills in Single Turn 2 | . 1 2 1 Gunslinging . | . . . . Exploded . | . . . . Melee . | . . . . Uniques/NPCs Destroyed . | . . . . Combat | -11 -10 -10 -8 -------- Run | Yrd Mat Sub Mat Hostile Shots Fired 244 | . 44 88 112 Missed 81 | . 13 29 39 Hits 163 | . 31 59 73 Projectile 163 | . 31 59 73 Critical Strikes 7 | . . 1 6 Damage Taken 1736 | . 264 533 939 Core 256 | . 44 80 132 Absorbed by Shields 152 | . . 132 20 Core Remaining (%) 75 | 100 . 50 . Volleys Fired 155 | 2 29 72 52 Largest 3 | 2 2 2 3 Hottest 200 | 200 200 113 200 Shots Fired 296 | 4 54 131 107 Gun 24 | . . . 24 Cannon 194 | . . 131 63 Launcher . | . . . . Special 78 | 4 54 . 20 Kinetic 126 | . . 83 43 Thermal 170 | 4 54 48 64 Explosive . | . . . . Electromagnetic . | . . . . Robot Hit Streak 13 | 2 9 11 13 Robot Miss Streak 6 | 2 6 3 6 Penetration Max . | . . . . Secondary Targets . | . . . . Shots Hit Robots 146 | 2 31 51 62 Core Hits 67 | . 16 25 26 Critical Kills . | . . . . Critical Parts Destroyed . | . . . . Critical Strikes 7 | . 2 3 2 Burn 3 | . 2 . 1 Blast 4 | . . 3 1 Melee Attacks . | . . . . Impact . | . . . . Slashing . | . . . . Piercing . | . . . . Sneak Attacks . | . . . . Combat Hostiles . | . . . . Follow-up Attacks . | . . . . Damage Inflicted 2983 | 23 343 1271 1346 Guns 257 | . . . 257 Cannons 2137 | . . 1271 866 Explosions . | . . . . Melee . | . . . . Ramming 24 | . . . 24 Kinetic 1257 | . . 684 573 Thermal 1702 | 23 343 587 749 Explosive . | . . . . Electromagnetic . | . . . . Impact . | . . . . Slashing . | . . . . Piercing . | . . . . Highest Corruption 1 | . . . 1 Average Corruption 1 | . . . 1 Corruption Purged . | . . . . Corruption Blocked . | . . . . Effects 1 | . . . 1 Data Loss (minor) 1 | . . . 1 Overload Shots . | . . . . Overflow Damage 72 | . . 17 55 Projectiles 72 | . . 17 55 Explosions . | . . . . Melee . | . . . . Knockbacks 14 | . . 6 8 Impact . | . . . . Kinetic 14 | . . 6 8 Secondary . | . . . . Self-Inflicted Damage 10 | . . . 10 Shots . | . . . . Rammed 10 | . . . 10 Targets Rammed 10 | . . . 10 Kicked . | . . . . Crushed . | . . . . Highest Temperature 243 | 10 80 39 243 Average Temperature 37 | 6 19 5 76 Received Heat Transfer 398 | . 42 66 290 Siege Activations . | . . . . Martial Activations . | . . . . Shielding Activations . | . . . . Robots Disrupted . | . . . . Combat Hostiles . | . . . . Robots Corrupted . | . . . . Combat Hostiles . | . . . . Parts Fried . | . . . . Impact Corruptions . | . . . . Robots Melted 4 | . 2 . 2 Combat Hostiles 3 | . 1 . 2 Parts Melted 1 | . . . 1 Heat Transferred 6044 | 160 2800 777 2307 Parts Sabotaged . | . . . . Parts Stolen . | . . . . Parts Stripped . | . . . . Power Chain Reactions . | . . . . Alert | -11 -10 -10 -8 ------- Run | Yrd Mat Sub Mat Maximum Alert Level 1 | . . . 1 Low Security (%) 98 | 100 100 . 97 Level 1 1 | . . . 2 Level 2 . | . . . . Level 3 . | . . . . Level 4 . | . . . . Level 5 . | . . . . High Security . | . . . . Max Security . | . . . . Peak Influence 202 | . 132 . 202 Initial . | . . . . Average 70 | . 46 . 105 Influence Increases 1046 | . 335 240 471 Destroy 0b10 Robot/C 620 | . 200 120 300 Destroy 0b10 Robot/NC 30 | . 15 . 15 Destroy Leader 108 | . 46 . 62 Trap Triggered on 0b10 10 | . . . 10 Successful Hack 70 | . 44 . 26 Disable Machine 30 | . . . 30 Destroy Structure 13 | . . . 13 Partial Spotted 15 | . . . 15 Lose Combat Pursuer 150 | . 30 120 . Influence Decreases 913 | . 335 240 338 Time Decay 803 | . 315 230 258 Lost Part 110 | . 20 10 80 Squads Dispatched . | . . . . Investigation . | . . . . Extermination . | . . . . Reinforcement . | . . . . Assault . | . . . . Garrison . | . . . . Intercept . | . . . . Searches Triggered . | . . . . Construction Impeded . | . . . . Haulers Reinforced . | . . . . Active Scanning Responses . | . . . . Cargo Convoy Interrupts . | . . . . Stealth | -11 -10 -10 -8 --------- Run | Yrd Mat Sub Mat Distress Signals 1 | . . . 1 Communications Jammed . | . . . . Distress Signals . | . . . . Times Spotted 74 | . 21 27 26 Peak Tracking Total 6 | . 3 6 5 Tactical Retreats 6 | . 2 4 . Traps | -11 -10 -10 -8 ------- Run | Yrd Mat Sub Mat Traps Triggered 1 | . . 1 . Indirectly . | . . . . Trap Hack Attempts . | . . . . Triggered . | . . . . Disarmed . | . . . . Reprogrammed . | . . . . Reused 1 | . . . 1 Traps Extracted . | . . . . Installed 1 | . . . 1 Triggered 1 | . . . 1 Most Traps Carried 1 | . . 1 1 Machines | -11 -10 -10 -8 ---------- Run | Yrd Mat Sub Mat Machines Disabled 3 | . . 1 2 Max in Single Turn 1 | . . 1 1 Machines Repaired . | . . . . Machines Dismantled . | . . . . Machines Sabotaged . | . . . . Overloaded Fab Kills . | . . . . Hacking | -11 -10 -10 -8 --------- Run | Yrd Mat Sub Mat Machines Accessed 15 | . 7 2 6 Terminals 13 | . 7 . 6 Fabricators . | . . . . Repair Stations . | . . . . Recycling Units . | . . . . Scanalyzers . | . . . . Garrison Access . | . . . . Total Hacks 55 | . 26 5 24 Successful 35 | . 14 5 16 Failed 20 | . 12 . 8 Catastrophic 2 | . 1 . 1 Database Lockouts . | . . . . Manual 47 | . 26 . 21 Terminals 50 | . 26 . 24 Fabricators . | . . . . Repair Stations . | . . . . Recycling Units . | . . . . Scanalyzers . | . . . . Garrison Access . | . . . . Terminal Hacks 12 | . 4 5 3 Record 4 | . . 4 . Robot Analysis 4 | . 3 . 1 Terminal Index 2 | . 1 . 1 Locate Traps 1 | . . . 1 Proto ID Catalog 1 | . . 1 . Fabricator Hacks . | . . . . Repair Station Hacks . | . . . . Recycling Unit Hacks . | . . . . Scanalyzer . | . . . . Garrison Access Hacks . | . . . . Unauthorized Hacks 23 | . 10 . 13 Terminals 23 | . 10 . 13 Track 1 | . . . 1 Assimilate 1 | . . . 1 Botnet 7 | . 4 . 3 Disrupt 1 | . . . 1 Operators 2 | . 1 . 1 Skim 11 | . 5 . 6 Fabricators . | . . . . Repair Stations . | . . . . Recycling Units . | . . . . Scanalyzers . | . . . . Garrison Access . | . . . . Data Cores Recovered . | . . . . Used . | . . . . Hacking Detections 13 | . 7 . 6 Full Trace Events . | . . . . Feedback Events . | . . . . Feedback Blocked . | . . . . Robot Schematics Acquired . | . . . . Robots Built . | . . . . Authchips . | . . . . Time . | . . . . Total Robot Build Rating . | . . . . Part Schematics Acquired . | . . . . Parts Built . | . . . . Authchips . | . . . . Time . | . . . . Total Part Build Rating . | . . . . Part Studies Acquired . | . . . . Parts Repaired . | . . . . Time . | . . . . Parts Recycled . | . . . . Recycled Matter . | . . . . Retrieved Matter . | . . . . Retrieved Components . | . . . . Parts Scanalyzed . | . . . . Part Schematics Acquired . | . . . . Parts Damaged . | . . . . Bothacking | -11 -10 -10 -8 ------------ Run | Yrd Mat Sub Mat Used RIF Installer . | . . . . Robots Hacked . | . . . . Non-combat . | . . . . Combat . | . . . . Robot Hacks Applied . | . . . . Relay Couplers Released . | . . . . Fabnet Peak Effective % . | . . . . Robots Rewired . | . . . . Allies Hacked . | . . . . Hacks Repelled . | . . . . Allies | -11 -10 -10 -8 -------- Run | Yrd Mat Sub Mat Total Allies 1 | . . . 1 Largest Group 1 | . . . 1 Highest-Rated Group 10 | . . . 10 Highest-Rated Ally 10 | . . . 10 Total Orders . | . . . . Ally Attacks . | . . . . Total Damage . | . . . . Kills . | . . . . Allies Corrupted . | . . . . Allies Melted . | . . . . Intel | -11 -10 -10 -8 ------- Run | Yrd Mat Sub Mat Active Infowar (turns) . | . . . . Robot Analysis Total 4 | . 3 . 1 Derelict Logs Recovered . | . . . . Drone Launches . | . . . . Drone Recoveries . | . . . . Exploration | -11 -10 -10 -8 ------------- Run | Yrd Mat Sub Mat Turns Passed 2978 | 27 843 1501 607 Spaces Moved 2244 | 22 665 1158 399 Core . | . . . . Treads . | . . . . Legs . | . . . . Wheels 2244 | 22 665 1158 399 Hover . | . . . . Flight . | . . . . Fastest Speed 80 | 80 80 80 100 Average Speed 90 | 80 80 93 100 Slowest Speed 120 | 80 80 100 120 Overloaded Moves . | . . . . Propulsion Burnouts . | . . . . Robots Hopped . | . . . . Potential Cave-ins . | . . . . Cave-ins Triggered . | . . . . Exploration Rate (%) 48 | 4 94 55 39 Regions Visited 3 Branch Regions 1 Pre-discovered Areas 4 | . 1 3 . Known Exits Taken 1 | . 1 . . Unknown Exits Taken 2 | 1 . 1 . Scrap Searched . | . . . . Spaces Dug 1 | . . 1 . Terrain Destroyed 19 | . . 8 11 Melee . | . . . . Projectile 19 | . . 8 11 AOE . | . . . . Terrain Rammed . | . . . . Walls Destroyed . | . . . . Machines Disabled . | . . . . Actions | -11 -10 -10 -8 --------- Run | Yrd Mat Sub Mat Total 2816 | 23 867 1433 493 Wait 383 | . 174 187 22 Move 2241 | 21 664 1157 399 Hop . | . . . . Pick Up 6 | . . 6 . Fast Attach . | . . . . Attach 3 | . . . 3 Detach 1 | . . . 1 Swap 12 | . . 10 2 Drop 4 | . . 1 3 Fire 155 | 2 29 72 52 Melee . | . . . . Ram 10 | . . . 10 Kick . | . . . . Crush . | . . . . Escape Stasis . | . . . . Rewire . | . . . . Trap 1 | . . . 1 Miscellaneous . | . . . . Route ------- -11/Scrapyard -10/Materials (discovered 6 exits: *Mat x3 / *Min x2 / *Sub) -10/Subcaves (discovered 3 exits: *Mat x2 / [*Rec]) -8/Materials (discovered 3 exits: Fac x3) History --------- Turn | Location | Event 5 | -11/Scrapyard | Discovered new exit (range 14) 28 | -11/Scrapyard | Entered Materials 124 | -10/Materials | Discovered new exit (range 12) 174 | -10/Materials | Discovered new exit (range 14) 250 | -10/Materials | Discovered new exit (range 6) 314 | -10/Materials | Build established: Mutant 345 | -10/Materials | Discovered new exit (range 14) 481 | -10/Materials | Discovered new exit (range 16) 560 | -10/Materials | Learned location of Mines (-9) 618 | -10/Materials | Learned 4 Subcaves zone layouts 664 | -10/Materials | Learned Storage emergency access door positions 701 | -10/Materials | Learned location of 1 exit from Storage 727 | -10/Materials | Identified exit to Subcaves 727 | -10/Materials | Identified exit to Materials 727 | -10/Materials | Identified exit to Mines 767 | -10/Materials | Learned location of 2 exits from Mines 803 | -10/Materials | Learned location of 2 exits from Mines 849 | -10/Materials | Learned 4 Materials zone layouts 871 | -10/Materials | Entered Subcaves 925 | -10/Subcaves | Learned location of Zion (-7) 925 | -10/Subcaves | Met a Zionite searching for "candidates" 929 | -10/Subcaves | Shifting Twisted Machinery released Battle Cannon 937 | -10/Subcaves | Shifting Twisted Machinery released Battle Cannon 1004 | -10/Subcaves | Discovered new exit (range 13) 1133 | -10/Subcaves | Shifting Twisted Machinery released Sub. Laser 1135 | -10/Subcaves | Shifting Twisted Machinery released Sub. Beam Cannon 1283 | -10/Subcaves | Ambushed by Subdweller buried in earth 1488 | -10/Subcaves | Shifting Twisted Machinery released Battle Cannon 1488 | -10/Subcaves | Ambushed by Subdwellers from Twisted Machinery 1602 | -10/Subcaves | Discovered new exit (range 11) 1679 | -10/Subcaves | Shifting Twisted Machinery released Shrapnel Trap 1748 | -10/Subcaves | Visited Clippyterm 1751 | -10/Subcaves | Learned location of Deep Caves (-7) 1751 | -10/Subcaves | Learned location of Section 7 (-2) 2225 | -10/Subcaves | A swath of the cavern ceiling suddenly collapsed 2254 | -10/Subcaves | Discovered new exit (range 13) 2345 | -10/Subcaves | Visited 4L-MR0's lab 2372 | -10/Subcaves | Entered Materials 2372 | -8/Materials | Evolved 4 slots: Utility x3, Weapon x1 2898 | -8/Materials | Identified exit to Factory 2927 | -8/Materials | Learned location of 1 exit from Recycling 2948 | -8/Materials | Learned Storage stockpile data 2963 | -8/Materials | Learned Recycling recycling unit intel 2965 | -8/Materials | Learned location of 1 exit from Storage 2979 | -8/Materials | Self-destructed Last Messages --------------- 02963_ Slammed into H-55 Commando. 02964_ >> SKIM: Stored Extension entrances (x1). 02964_ Slammed into H-55 Commando. 02964_ Arm. Huge Wheel broken. 02964_ Destabilizing: Short circuit. 02964_ Slug penetrates Wall. 02965_ >> SKIM: Stored Storage exits (x1). 02967_ Slammed into H-55 Commando. 02967_ Slug penetrates Wall. 02968_ >> SKIM: Stored Lower Caves entrances (x1). 02970_ Slammed into H-55 Commando. 02970_ Destabilizing: System corrupted (+1). 02973_ Slammed into H-55 Commando. 02973_ Penetrated by Slug. 02974_ System corrupted: Component data lost. 02974_ U-05 Engineer builds a Wall. 02976_ Slammed into H-55 Commando. 02979_ >> SKIM: Exit location confirmed. 02979_ >> SKIM: Data seek routine purged. Map ----- +----------------------------------------------------+ | #??#####+#### """ ## # ??????????????? | | #?????# + ## """"""" + ??????????????? | | ####### ### ## """"""" # ??????????????? | | #?# ## """"""" # ??????????????? | | ######### #?# " " ## """"""" # ??????????????? | | ????????# #?# "G" # """"""" # ??????????????? | | ######### #?# """ ############ ??????????????? | | ## ### #??????????# ??????????????? | | # ###+################# ??????????????? | | # ??????????????? | | + T ??????????????? | | # ??????????????? | | ?????????????????????##+###???????? # # | | ?????????????????????? #???????? #### ### | | ??????????????????????" #???????? #??######+### | | ??????????????????????? #???????? ####### # | | ??????????????????????? a #???????? # | | ????????o??????????????? #???????? T # | | ???????????????????????? #???????? # | | ????????????????????????#;#????####+######## # | | ????????????????????????#%#????# #??####### | | ????????????????????????#%#????# """ #????????? | | ????????????????????????#%#????# """ #????????? | | ?????????????????########u#????# """ #????????? | | ??????????????# / ggh##???# #????????? | | ??????????????# # #####@##???# """ #????????? | | ????????????????????????#%###### """ #????????? | | ????????????????????????# u + """ #????????? | | ????????????????????????#### ### #????????? | | ???????????????????????????# #?##########????????? | | ???????????????????????????# #???????????????????? | | ???????????????????????????# #???##############??? | | ???????????????????????????# ##### % #??? | | ???????????????????????????# %/%% % #### | | ???????????????????????????# ## + | | ???????????????????????????# ## """" " " #### | | ???????????????????????????# ## """" """ % #??? | | ???????????????????????????# ## """" """" ##?? | | ???????????????????????????# ## % ##?? | | ???????????????????????????# ## """" ##?? | | ??????????????????##########+## ## """" ##?? | | ??????????????????# # ## """" "T" #??? | | ??????????????????# # + """ #??? | | ??????????????????# # # #??? | | ??????????????????# # #######+#+####??? | | ??????????????????# # #?????? | | ??????????????????# # #?????? | | ??????????????????# / #?????? | | ??????????????????# # ##???## | | ??????????????????# %+ +?? | +----------------------------------------------------+ Best States ------------- Heat Dissipation 53 Energy Generation 12 Energy Capacity 265 Matter Stores 300 Matter Capacity 300 Sight Range 16 Terrain Scan Density 10 Armor Coverage 225 Weapon Cycling 15 Evasion (%) 44 Item Schematics ----------------- None Robot Schematics ------------------ None Fabricated ------------ Nothing Repaired ---------- Nothing Studied --------- None Alien Tech Used ----------------- None Achievements -------------- None Challenges ------------ None Cogshop Purchases (16) ------------------------ Flamer (699) Flamer (699) Wheel (659) Wheel (659) Imp. Ion Engine (699) Cooling System (699) Med. Armor Plating (699) Flamer (732) Hardlight Generator (Loot Box) Flamer (868) Arm. Wheel (872) Med. Armor Plating (813) Imp. Ion Engine (674) Hrd. Medium Armor Plating (924) Weapon Cycler (971) Arm. Huge Wheel (1180) Game ------ Seed WarpGreatMicroactuators Manual? 0 Play Time 00:30:00 Cumulative 431.3 hours Start 2026.01.14 @ 02:03:22 End 2026.01.14 @ 02:33:12 Sessions 1 Manual Loads 0 Difficulty Rogue Special Mode AFD2019/Pay2Buy Game No. 153 Rogue 153 Adventurer 0 Explorer 0 Win Type - Total 10 Types 5/0/1/1/0/0/0/1/0/2 Lore% 86 Gallery% 81 Achievement% 72 Wizard Run 0 Options --------- Layout 1 ASCII 0 Keyboard 0 Movement Mouse Keybinds 0 Fullscreen 2 Font 32/SmallcapsGlow Map View 50x35 Zoom Use 0% Tactical HUD 1 Map Filters NONE Filters NONE Steam 1 RUN: 36ee961d-653f-409f-8f17-ea8c02fa48df